bitfinex-derivatives/quotes_BTCF0:USTF0_20251118
["timestamp","ask_amount","ask_price","bid_price","bid_amount"]
[1763491528201,0.40332,93426.0,93425.0,0.04454058]
[1763491528395,0.40432,93426.0,93425.0,0.04454058]
[1763491529697,0.40432,93426.0,93425.0,0.00016058]
[1763491530109,0.40432,93426.0,93425.0,0.15124518]
[1763491530706,0.40432,93426.0,93425.0,0.04414058]
[1763491531604,0.40332,93426.0,93425.0,0.04414058]
[1763491533504,0.3608,93426.0,93425.0,0.04414058]
[1763491533706,0.40321,93426.0,93425.0,0.04414058]
[1763491535809,0.3608,93426.0,93425.0,0.04414058]
[1763491536008,0.5103135,93426.0,93425.0,0.04414058]
[1763491537909,0.5103135,93426.0,93425.0,0.00016058]
[1763491538617,0.5103135,93426.0,93412.0,0.1510995]
[1763491538618,0.04241,93413.0,93412.0,0.1510995]
[1763491538814,0.01001,93424.0,93404.0,0.2582]
[1763491538815,0.02105,93416.0,93415.0,0.1510961]
[1763491539014,0.04241,93416.0,93415.0,0.1510961]
[1763491539415,0.0019307,93420.0,93419.0,0.1510915]
[1763491540112,0.0443407,93420.0,93419.0,0.04398]
[1763491540421,0.04241,93415.0,93414.0,0.10160633]
[1763491540626,0.1071088,93422.0,93408.0,0.4805341]
[1763491540627,0.1495272,93414.0,93413.0,0.05762633]
[1763491540913,0.5103226,93418.0,93417.0,0.04398]
[1763491542114,0.5103226,93418.0,93417.0,0.0224]
[1763491542524,0.1495272,93414.0,93413.0,0.05762633]
[1763491542824,0.1495307,93411.0,93410.0,0.001]
[1763491543011,0.1495307,93411.0,93410.0,0.04498]
[1763491544324,0.1495307,93411.0,93410.0,0.001]
[1763491544524,0.1495307,93411.0,93410.0,0.0234]
[1763491544718,0.04241,93411.0,93410.0,0.04498]
[1763491545332,0.3608,93418.0,93417.0,0.04398]
[1763491545531,0.3608,93426.0,93424.0,0.1510858]
[1763491546532,0.3608,93435.0,93424.0,0.5118858]
[1763491546925,0.3608,93435.0,93424.0,0.58873553]
[1763491547126,0.4678934,93435.0,93424.0,0.58873553]
[1763491547331,0.3608,93435.0,93424.0,0.5118858]
[1763491548429,0.00026754,93446.0,93424.0,0.5118858]
[1763491548430,0.1070919,93437.0,93424.0,0.5118858]
[1763491549039,0.1070955,93433.0,93424.0,0.58872791]
[1763491549239,0.107092,93436.0,93424.0,0.58872791]
[1763491549538,0.107092,93436.0,93424.0,0.5118858]
[1763491550129,0.107092,93436.0,93424.0,0.58871584]
[1763491550427,0.04257058,93425.0,93424.0,0.3832]
[1763491550736,0.04257058,93425.0,93424.0,0.04398]
[1763491551240,0.04257058,93425.0,93420.0,0.001]
[1763491551241,0.1495192,93421.0,93420.0,0.05864655]
[1763491551537,0.5103192,93421.0,93420.0,0.05864655]
[1763491551841,0.5103192,93421.0,93420.0,0.001]
[1763491555540,0.1495226,93418.0,93416.0,0.05764655]
[1763491555737,0.1495249,93416.0,93415.0,0.05764655]
[1763491555935,0.1495249,93416.0,93414.0,0.05764655]
[1763491556140,0.04241,93415.0,93414.0,0.05764655]
[1763491556330,0.04241,93415.0,93414.0,0.0224]
[1763491556647,0.04241,93415.0,93414.0,0.04398]
[1763491557436,0.04241,93415.0,93414.0,0.10163028]
[1763491558441,0.04241,93415.0,93414.0,0.20874748]
[1763491558639,0.04241,93415.0,93414.0,0.10163028]
[1763491559244,0.04241,93415.0,93414.0,0.04398]
[1763491560338,0.12552908,93414.0,93413.0,0.05765028]
[1763491560541,0.04413,93412.0,93411.0,0.05765028]
[1763491560743,0.40493,93412.0,93411.0,0.05765028]
[1763491561442,0.1512507,93411.0,93410.0,0.05865028]
[1763491562637,0.1512507,93411.0,93410.0,0.10481028]
[1763491562840,0.3608,93412.0,93411.0,0.1532807]
[1763491563134,0.5139721,93420.0,93419.0,0.04616]
[1763491563548,0.4068607,93420.0,93419.0,0.04616]
[1763491563849,0.3627307,93420.0,93419.0,0.10379805]
[1763491564046,0.3856707,93420.0,93419.0,0.04616]
[1763491564348,0.4068607,93420.0,93419.0,0.10379805]
[1763491564739,0.3856707,93420.0,93419.0,0.10379805]
[1763491564938,0.3608,93420.0,93419.0,0.04616]
[1763491565842,0.3627307,93420.0,93419.0,0.04616]
[1763491566439,0.513971,93420.0,93419.0,0.04616]
[1763491566644,0.1512438,93417.0,93416.0,0.03697]
[1763491566841,0.1512438,93417.0,93416.0,0.0233]
[1763491567038,0.1512438,93417.0,93416.0,0.05983]
[1763491567039,0.1502438,93417.0,93416.0,0.05983]
[1763491567238,0.3608,93420.0,93419.0,0.04616]
[1763491567656,0.4068607,93420.0,93419.0,0.04616]
[1763491568251,0.3627307,93420.0,93419.0,0.04616]
[1763491568456,0.3608,93441.0,93424.0,0.05983]
[1763491568756,0.3608,93441.0,93440.0,0.1679174]
[1763491569543,0.3608,93441.0,93440.0,0.22557609]
[1763491570148,0.3608,93441.0,93440.0,0.11848869]
[1763491570749,0.40493,93441.0,93440.0,0.11848869]
[1763491571553,0.40493,93441.0,93440.0,0.06083]
[1763491571953,0.3608,93441.0,93440.0,0.06083]
[1763491572358,0.3608,93441.0,93440.0,0.31903]
[1763491573358,0.40493,93441.0,93440.0,0.31903]
[1763491574452,0.151222,93436.0,93435.0,0.05765869]
[1763491574957,0.04413,93435.0,93434.0,0.05765869]
[1763491575259,0.04413,93435.0,93434.0,0.08095869]
[1763491575953,0.04413,93435.0,93434.0,0.10381869]
[1763491576361,0.04413,93435.0,93434.0,0.04616]
[1763491576659,0.1512266,93432.0,93431.0,0.00016058]
[1763491577160,0.1512266,93432.0,93431.0,0.02346058]
[1763491577363,0.5120266,93432.0,93431.0,0.02346058]
[1763491577557,0.5120266,93432.0,93431.0,0.04632058]
[1763491577762,0.40493,93432.0,93431.0,0.04632058]
[1763491578063,0.5120266,93432.0,93431.0,0.04632058]
[1763491579759,0.5120266,93432.0,93431.0,0.00016058]
[1763491581960,0.5120266,93432.0,93431.0,0.04620058]
[1763491581961,0.40493,93432.0,93431.0,0.04620058]
[1763491583053,0.41785506,93432.0,93431.0,0.00016058]
[1763491584261,0.1071081,93422.0,93421.0,0.05761542]
[1763491584461,0.04548,93421.0,93420.0,0.001]
[1763491584849,0.04548,93421.0,93420.0,0.02333]
[1763491585254,0.05840506,93421.0,93420.0,0.02333]
[1763491585459,0.05840506,93421.0,93420.0,0.001]
[1763491585655,0.05840506,93421.0,93420.0,0.04607]
[1763491586659,0.01292506,93421.0,93420.0,0.04607]
[1763491587258,0.01292506,93421.0,93420.0,0.04707]
[1763491588265,0.05725506,93421.0,93420.0,0.04707]
[1763491589654,0.00323284,93421.0,93420.0,0.04707]
[1763491589860,0.00016058,93430.0,93429.0,0.15216]
[1763491591365,0.3608,93460.0,93445.0,0.1521417]
[1763491591556,0.1070668,93458.0,93445.0,0.1521417]
[1763491591762,0.4678654,93460.0,93445.0,0.1521417]
[1763491592072,0.3608,93460.0,93445.0,0.1521417]
[1763491592365,0.10723188,93455.0,93445.0,0.1521417]
[1763491592566,0.00016058,93455.0,93445.0,0.1521417]
[1763491594168,0.02237058,93455.0,93454.0,0.1521314]
[1763491594459,0.00016058,93455.0,93454.0,0.4102914]
[1763491594661,0.00016058,93455.0,93454.0,0.46788516]
[1763491594862,0.00016058,93455.0,93454.0,0.4102914]
[1763491595074,0.04449058,93455.0,93454.0,0.30322]
[1763491595267,0.04449058,93455.0,93454.0,0.3607932]
[1763491595473,0.00016058,93455.0,93454.0,0.3607932]
[1763491596274,0.00016058,93455.0,93454.0,0.30322]
[1763491599175,0.40513,93472.0,93471.0,0.1521119]
[1763491599371,0.40513,93472.0,93471.0,0.04506]
[1763491599566,0.3608,93482.0,93480.0,0.1070408]
[1763491599772,0.04433,93481.0,93480.0,0.04606]
[1763491599972,0.04433,93481.0,93480.0,0.05998]
[1763491600877,0.04433,93481.0,93480.0,0.001]
[1763491601668,0.04433,93473.0,93472.0,0.05898]
[1763491601981,0.04433,93472.0,93471.0,0.00016048]
[1763491603274,0.04433,93472.0,93471.0,0.02217048]
[1763491603669,0.04433,93457.0,93456.0,0.03829974]
[1763491603870,0.04433,93451.0,93450.0,0.03829974]
[1763491604069,0.1514048,93451.0,93450.0,0.03929974]
[1763491604270,0.1514048,93451.0,93450.0,0.08435974]
[1763491604872,0.1514048,93451.0,93450.0,0.04606]
[1763491605177,0.04433,93451.0,93450.0,0.04606]
[1763491606782,0.00016048,93460.0,93459.0,0.1521256]
[1763491607180,0.00209118,93460.0,93459.0,0.1521256]
[1763491607481,0.02430118,93460.0,93459.0,0.1521256]
[1763491607686,0.04642118,93460.0,93459.0,0.1521256]
[1763491608582,0.1070657,93459.0,93456.0,0.05898]
[1763491608786,0.1514151,93442.0,93441.0,0.02217048]
[1763491608980,0.1514151,93442.0,93441.0,0.04522048]
[1763491609184,0.1514151,93442.0,93441.0,0.02217048]
[1763491609381,0.1514151,93442.0,93441.0,0.00016048]
[1763491610480,0.1514151,93442.0,93441.0,0.00116048]
[1763491610783,0.1514334,93426.0,93425.0,0.02201]
[1763491610976,0.04433,93424.0,93423.0,0.25812]
[1763491611181,0.04433,93424.0,93423.0,0.4102869]
[1763491611684,0.38301,93429.0,93428.0,0.1521611]
[1763491611885,0.3598,93429.0,93428.0,0.1521611]
[1763491612078,0.00016048,93433.0,93432.0,0.1521565]
[1763491613282,0.00016048,93433.0,93432.0,0.19046864]
[1763491614088,0.04449048,93433.0,93432.0,0.04506]
[1763491616289,0.15158588,93433.0,93432.0,0.04506]
[1763491617490,0.15158588,93433.0,93431.0,0.05752786]
[1763491617793,0.15158588,93433.0,93430.0,0.001]
[1763491617794,0.04584,93431.0,93430.0,0.001]
[1763491619397,0.04684,93431.0,93430.0,0.001]
[1763491619785,0.1529457,93424.0,93423.0,0.08192863]
[1763491619983,0.1529457,93424.0,93423.0,0.0435]
[1763491620193,0.3608,93425.0,93424.0,0.0435]
[1763491621095,0.40664,93425.0,93424.0,0.0435]
[1763491622795,0.1529492,93421.0,93420.0,0.001]
[1763491623497,0.04584,93415.0,93414.0,0.00016048]
[1763491623703,0.04584,93415.0,93412.0,9.331e-05]
[1763491623704,0.04584,93413.0,93412.0,9.331e-05]
[1763491627194,0.04584,93413.0,93412.0,0.04359331]
[1763491627999,0.0226,93413.0,93412.0,0.04359331]
[1763491628197,0.04584,93413.0,93412.0,0.04359331]
[1763491628792,0.04584,93407.0,93403.0,0.00016056]
[1763491629094,0.04584,93404.0,93403.0,0.00016056]
[1763491629291,0.1297436,93391.0,93390.0,0.03612]
[1763491629491,0.1529836,93391.0,93390.0,0.001]
[1763491629899,0.15307691,93391.0,93390.0,0.02326]
[1763491630199,0.15307691,93391.0,93390.0,0.05836]
[1763491630601,9.331e-05,93391.0,93390.0,0.05836]
[1763491630798,0.02269331,93391.0,93390.0,0.05836]
[1763491631097,9.331e-05,93391.0,93390.0,0.05836]
[1763491632503,9.331e-05,93391.0,93390.0,0.09678863]
[1763491632903,9.331e-05,93391.0,93390.0,0.05836]
[1763491633307,0.3608,93407.0,93406.0,0.0435]
[1763491633308,0.4905258,93407.0,93406.0,0.0435]
[1763491633799,0.5137658,93407.0,93406.0,0.0435]
[1763491633998,0.5137658,93407.0,93400.0,0.01386]
[1763491633999,0.1529721,93401.0,93400.0,0.05736]
[1763491634195,0.1529721,93401.0,93400.0,0.001]
[1763491634399,0.1529721,93401.0,93400.0,0.05836]
[1763491636308,0.2504462,93420.0,93400.0,0.05836]
[1763491636510,0.03437882,108950.0,93454.0,1.0707062]
[1763491636511,0.0749145,93479.0,93454.0,1.0707062]
[1763491636700,0.05747425,93504.0,93490.0,0.00999999]
[1763491636901,0.01361,93506.0,93503.0,0.03823096]
[1763491637204,0.04584,93501.0,93500.0,0.1080187]
[1763491637401,0.01361,93506.0,93500.0,0.1080187]
[1763491637402,0.01361,93506.0,93505.0,0.107013]
[1763491637601,0.01361,93506.0,93505.0,0.1347549]
[1763491638109,0.01361,93506.0,93505.0,0.15044437]
[1763491638495,0.05945,93506.0,93505.0,0.04343137]
[1763491638700,0.00026719,93566.0,93510.0,0.00999999]
[1763491638904,0.01361,93576.0,93575.0,0.1069329]
[1763491639105,0.01361,93590.0,93575.0,0.1069329]
[1763491639106,0.03621,93590.0,93589.0,0.1069169]
[1763491639409,0.01361,93590.0,93589.0,0.87401121]
[1763491639602,0.0226,93599.0,93598.0,0.1069066]
[1763491639803,0.01361,93604.0,93603.0,0.1069009]
[1763491640111,1.51361,93604.0,93603.0,0.51319521]
[1763491640310,1.51361,93604.0,93603.0,0.40629431]
[1763491640513,1.51716,93604.0,93603.0,0.40629431]
[1763491640912,1.51916,93604.0,93603.0,0.39065811]
[1763491641309,1.51916,93604.0,93603.0,0.3608]
[1763491641511,1.52016,93604.0,93603.0,0.3608]
[1763491641716,1.91661,93604.0,93595.0,0.3608]
[1763491642015,0.06124,93596.0,93595.0,0.3608]
[1763491642307,0.32528,93596.0,93595.0,0.3608]
[1763491643014,0.32528,93596.0,93590.0,0.01219802]
[1763491643015,0.06124,93591.0,93590.0,0.00219803]
[1763491644418,0.06124,93591.0,93590.0,0.10911383]
[1763491644917,0.06324,93591.0,93590.0,0.10911383]
[1763491645117,0.06324,93591.0,93590.0,0.00219803]
[1763491646614,0.32688,93591.0,93590.0,0.00219803]
[1763491647006,0.32588,93591.0,93590.0,0.00219803]
[1763491647215,0.32688,93591.0,93590.0,0.00219803]
[1763491647716,0.32688,93591.0,93586.0,0.3608]
[1763491647928,0.06142,93590.0,93581.0,0.1069259]
[1763491648615,0.06142,93590.0,93586.0,0.10692]
[1763491649214,0.06142,93590.0,93580.0,0.01219802]
[1763491649215,0.06142,93590.0,93580.0,0.11912442]
[1763491649408,0.08125,93590.0,93580.0,0.11912442]
[1763491650422,0.34561,93590.0,93580.0,0.11912442]
[1763491650812,0.08225,93590.0,93587.0,0.3608]
[1763491651019,0.34561,93590.0,93587.0,0.3608]
[1763491651225,0.06342,93590.0,93587.0,0.3608]
[1763491651520,0.32674,93590.0,93589.0,0.10707719]
[1763491651720,0.4336558,93590.0,93589.0,0.00016029]
[1763491651925,0.32674,93590.0,93589.0,0.00016029]
[1763491652116,0.002,93590.0,93589.0,0.16668719]
[1763491652322,0.002,93590.0,93589.0,0.52748719]
[1763491652616,0.26524,93590.0,93589.0,0.52748719]
[1763491654121,0.002,93590.0,93589.0,0.52748719]
[1763491655118,0.0633,93590.0,93589.0,0.36096029]
[1763491655922,0.0633,93590.0,93589.0,0.00016029]
[1763491656717,0.32634,93590.0,93589.0,0.00016029]
[1763491658818,0.0633,93590.0,93589.0,0.00016029]
[1763491659018,0.32626,93590.0,93589.0,0.00016029]
[1763491659219,0.32618,93590.0,93589.0,0.02943029]
[1763491659521,0.32614,93590.0,93589.0,0.02943029]
[1763491659721,0.002,93590.0,93589.0,0.05977029]
[1763491661422,1e-07,93590.0,93589.0,0.05977029]
[1763491664121,0.0613001,93590.0,93589.0,0.05977029]
[1763491664322,0.0613001,93590.0,93589.0,0.05975275]
[1763491664728,0.0613001,93590.0,93589.0,0.09009275]
[1763491664929,1e-07,93590.0,93589.0,0.09009275]
[1763491665115,0.0301001,93590.0,93589.0,0.03048275]
[1763491665318,0.0301001,93590.0,93589.0,0.09009275]
[1763491665929,1e-07,93590.0,93589.0,0.03048275]
[1763491666430,0.26703267,93594.0,93593.0,0.1665223]
[1763491666622,0.26703267,93594.0,93593.0,0.19684476]
[1763491668031,0.26803267,93594.0,93593.0,0.19684476]
[1763491668227,0.29923267,93594.0,93593.0,0.03032246]
[1763491669430,0.29923267,93594.0,93593.0,0.13723486]
[1763491669727,0.30023267,93594.0,93593.0,0.13723486]
[1763491670831,0.30023267,93594.0,93593.0,0.03032246]
[1763491672335,0.30023267,93594.0,93593.0,0.13723476]
[1763491672528,0.32558,93594.0,93593.0,0.13723476]
[1763491673433,0.0633,93594.0,93593.0,0.13723476]
[1763491673739,0.32558,93594.0,93593.0,0.13723476]
[1763491674432,0.002,93594.0,93593.0,0.19684476]
[1763491674736,0.2642,93594.0,93593.0,0.19684476]
[1763491675634,0.26416,93594.0,93593.0,0.19684476]
[1763491676223,0.32346,93594.0,93593.0,0.19684476]
[1763491676424,0.32342,93594.0,93593.0,0.19684476]
[1763491677733,0.0613,93594.0,93593.0,0.19684476]
[1763491677928,0.32342,93594.0,93593.0,0.19684476]
[1763491678625,1.5,93604.0,93603.0,0.1722009]
[1763491678834,1.76208,93604.0,93603.0,0.56332336]
[1763491679236,1.76208,93604.0,93603.0,0.49802336]
[1763491679640,1.76208,93604.0,93603.0,0.39112246]
[1763491679843,1.76208,93604.0,93603.0,0.03032246]
[1763491680147,1.76508,93604.0,93603.0,0.03032246]
[1763491680432,1.76508,93604.0,93603.0,0.13722336]
[1763491680633,1.503,93604.0,93603.0,0.13722336]
[1763491680839,1.503,93604.0,93603.0,0.17152336]
[1763491681229,1.503,93604.0,93603.0,0.20252336]
[1763491681434,1.503,93604.0,93603.0,0.27904395]
[1763491681735,1.76492,93604.0,93603.0,0.20252336]
[1763491681938,0.3608,93620.0,93603.0,0.20252336]
[1763491681939,0.09408614,93671.0,93670.0,0.06184]
[1763491682135,0.07541916,93684.0,93671.0,0.1068229]
[1763491682344,0.06632,93671.0,93670.0,0.03311803]
[1763491682641,0.06632,93671.0,93670.0,0.32530868]
[1763491682835,0.06632,93671.0,93670.0,0.78318868]
[1763491683039,0.0837902,93680.0,93679.0,0.1068142]
[1763491683232,0.0837902,93680.0,93679.0,0.52455647]
[1763491683432,0.0837902,93680.0,93679.0,0.49608485]
[1763491683632,0.0837902,93680.0,93679.0,0.55792485]
[1763491683833,0.0837902,93680.0,93679.0,0.52700485]
[1763491684138,0.0837902,93680.0,93679.0,0.49608485]
[1763491684934,0.0877902,93680.0,93679.0,0.49608485]
[1763491685130,0.0877902,93680.0,93679.0,0.41775585]
[1763491685438,0.0877902,93680.0,93679.0,0.38927065]
[1763491685634,0.7340402,93680.0,93679.0,0.02847065]
[1763491685838,0.1068334,93663.0,93661.0,0.3609602]
[1763491686033,0.26356,93662.0,93661.0,0.3609602]
[1763491686535,0.66356,93662.0,93661.0,0.3609602]
[1763491686740,0.66356,93662.0,93661.0,0.0001602]
[1763491687239,0.26748,93662.0,93661.0,0.0001602]
[1763491687428,0.004,93662.0,93661.0,0.0001602]
[1763491687628,0.26748,93662.0,93661.0,0.0001602]
[1763491688040,0.27048,93662.0,93661.0,0.0001602]
[1763491688640,0.007,93662.0,93661.0,0.0654602]
[1763491688949,0.27048,93662.0,93661.0,0.0001602]
[1763491689939,0.27048,93662.0,93661.0,0.0654602]
[1763491690447,0.2704,93662.0,93661.0,0.0001602]
[1763491690848,0.27032,93662.0,93661.0,0.0001602]
[1763491691343,0.27032,93662.0,93661.0,0.0654602]
[1763491691544,0.27028,93662.0,93661.0,0.0654602]
[1763491691753,0.1068142,93679.0,93678.0,0.01798]
[1763491691942,0.26328,93670.0,93669.0,0.0653]
[1763491692250,0.26328,93670.0,93669.0,0.4261]
[1763491692445,0.0001602,93680.0,93678.0,0.01798]
[1763491692640,0.0001602,93680.0,93679.0,0.3608]
[1763491692844,0.2634002,93680.0,93679.0,0.3608]
[1763491693151,0.2634002,93680.0,93679.0,0.4261]
[1763491693341,0.2634002,93680.0,93679.0,0.3608]
[1763491693540,0.2684002,93680.0,93679.0,0.3608]
[1763491694045,0.2724002,93680.0,93679.0,0.3951]
[1763491694446,0.2724002,93680.0,93679.0,0.3608]
[1763491694646,0.2674002,93680.0,93679.0,0.3608]
[1763491694845,0.2724002,93680.0,93679.0,0.3608]
[1763491695747,0.2724002,93680.0,93669.0,0.3608]
[1763491695945,0.1068223,93672.0,93669.0,0.3608]
[1763491697954,0.1068245,93670.0,93669.0,0.3608]
[1763491699452,0.1098245,93670.0,93669.0,0.3608]
[1763491700255,0.1128245,93670.0,93669.0,0.3608]
[1763491700453,0.1068336,93662.0,93660.0,0.38877999]
[1763491700658,0.006,93670.0,93660.0,0.39097802]
[1763491700957,0.006,93670.0,93669.0,0.3608]
[1763491701547,0.1068336,93662.0,93661.0,0.3609602]
[1763491702650,0.1098336,93662.0,93661.0,0.3609602]
[1763491703357,0.1128336,93662.0,93661.0,0.3609602]
[1763491703952,0.1128336,93662.0,93661.0,1e-08]
[1763491704151,0.1068427,93654.0,93653.0,0.3608]
[1763491704358,0.3695627,93654.0,93653.0,0.3608]
[1763491705549,0.3725627,93654.0,93653.0,0.3608]
[1763491705749,0.3755627,93654.0,93653.0,0.3608]
[1763491706349,0.1068461,93651.0,93648.0,0.0284]
[1763491706563,0.106853,93645.0,93644.0,0.0001602]
[1763491706853,0.19385451,93645.0,93644.0,0.0001602]
[1763491707045,0.1068735,93627.0,93626.0,0.01798]
[1763491707245,0.1068735,93627.0,93615.0,0.3608]
[1763491707246,0.1068826,93619.0,93615.0,0.3608]
[1763491708557,0.1068746,93626.0,93624.0,0.02618]
[1763491709560,0.1068804,93621.0,93620.0,0.00219803]
[1763491710754,0.1078804,93621.0,93620.0,0.00219803]
[1763491711455,0.1078804,93621.0,93615.0,0.3608]
[1763491712256,0.1088804,93621.0,93615.0,0.3608]
[1763491712455,0.1078804,93621.0,93615.0,0.3608]
[1763491712651,0.1088804,93621.0,93615.0,0.3608]
[1763491714256,0.1068827,93619.0,93618.0,0.08994317]
[1763491714966,0.1068827,93619.0,93618.0,8.317e-05]
[1763491715357,0.3692427,93619.0,93618.0,8.317e-05]
[1763491715563,0.3712427,93619.0,93618.0,8.317e-05]
[1763491717259,0.1068895,93613.0,93612.0,0.0284]
[1763491717466,0.1068929,93610.0,93606.0,0.36106708]
[1763491717665,0.3691329,93610.0,93606.0,0.36106708]
[1763491718167,0.3691329,93610.0,93606.0,0.00026708]
[1763491718353,0.36921607,93610.0,93606.0,0.00026708]
[1763491718559,0.37021607,93610.0,93606.0,0.00026708]
[1763491718761,0.10797607,93610.0,93609.0,0.0900202]
[1763491718963,0.37017607,93610.0,93609.0,0.0001602]
[1763491719770,0.37117607,93610.0,93609.0,0.0001602]
[1763491720673,0.37117607,93610.0,93609.0,0.0444002]
[1763491721373,0.37117607,93610.0,93609.0,0.0001602]
[1763491721871,0.00208317,93610.0,93609.0,0.0900202]
[1763491722067,0.26424317,93610.0,93609.0,0.0900202]
[1763491723272,0.2395,93620.0,93610.0,0.11823803]
[1763491723473,0.1068872,93615.0,93614.0,0.3608]
[1763491724063,0.1919589,93615.0,93614.0,0.3608]
[1763491725362,0.1939589,93615.0,93614.0,0.3608]
[1763491726768,0.1088872,93615.0,93614.0,0.45066]
[1763491726969,0.3709272,93615.0,93614.0,0.45066]
[1763491727273,0.26396,93615.0,93614.0,0.45066]
[1763491727474,0.002,93615.0,93614.0,0.45066]
[1763491727673,0.2628635,93615.0,93614.0,0.45066]
[1763491730272,0.23719724,93615.0,93614.0,0.45066]
[1763491730964,0.23719724,93615.0,93614.0,0.40504]
[1763491731681,0.23719724,93615.0,93614.0,0.45066]
[1763491732271,0.1070377,93624.0,93623.0,0.08986]
[1763491732470,0.3688777,93624.0,93623.0,0.45066]
[1763491733382,0.3698777,93624.0,93623.0,0.45066]
[1763491734274,0.0011602,93624.0,93623.0,0.45066]
[1763491734668,0.2629202,93624.0,93623.0,0.45066]
[1763491741172,0.2629202,93624.0,93623.0,0.3608]
[1763491741787,0.2629202,93624.0,93623.0,0.40726]
[1763491742078,0.2629202,93624.0,93610.0,0.03617999]
[1763491742079,0.1068895,93613.0,93610.0,0.02618]
[1763491742278,0.1068918,93611.0,93610.0,0.02618]
[1763491742467,0.1068918,93611.0,93610.0,0.12021803]
[1763491744881,0.3693718,93611.0,93610.0,0.12021803]
[1763491746376,0.3693718,93611.0,93610.0,0.02837803]
[1763491746575,0.3693718,93611.0,93610.0,0.02618]
[1763491746974,0.3693718,93611.0,93605.0,0.3608]
[1763491747176,0.05761083,93610.0,93609.0,0.0321202]
[1763491747375,0.3693718,93611.0,93609.0,0.0785802]
[1763491747585,0.42698263,93611.0,93609.0,0.0785802]
[1763491747785,0.05761083,93610.0,93609.0,0.0785802]
[1763491748282,0.05761083,93610.0,93609.0,0.1239602]
[1763491749185,0.3683718,93611.0,93610.0,0.09403803]
[1763491749390,0.16449693,93616.0,93615.0,0.09184]
[1763491749584,0.3682861,93616.0,93615.0,0.09184]
[1763491749781,0.2614,93616.0,93615.0,0.09184]
[1763491750379,0.1068859,93617.0,93616.0,0.09184]
[1763491750573,0.3682859,93617.0,93616.0,0.09184]
[1763491752688,0.42689673,93617.0,93616.0,0.09184]
[1763491752890,0.1068918,93611.0,93610.0,0.81344]
[1763491753187,0.1068918,93611.0,93610.0,0.72379803]
[1763491753386,0.1068918,93611.0,93610.0,0.77025803]
[1763491753792,0.1068918,93611.0,93610.0,0.81563803]
[1763491754289,0.1068918,93611.0,93610.0,0.45483803]
[1763491754593,0.1068918,93611.0,93609.0,0.0321202]
[1763491754774,0.1078918,93611.0,93609.0,0.0321202]
[1763491755187,0.1078918,93611.0,93610.0,0.09184]
[1763491755383,0.1078918,93611.0,93610.0,0.09403803]
[1763491755584,0.1068918,93611.0,93610.0,0.09403803]
[1763491755887,0.42674729,93611.0,93610.0,0.09403803]
[1763491756090,0.3690918,93611.0,93610.0,0.09403803]
[1763491757090,0.08222107,93611.0,93610.0,0.09403803]
[1763491757485,0.34238107,93611.0,93610.0,0.09403803]
[1763491757682,0.34338107,93611.0,93610.0,0.09403803]
[1763491760882,0.34338107,93611.0,93610.0,0.00219803]
[1763491761792,0.34338107,93611.0,93610.0,0.04961803]
[1763491761993,0.34338107,93611.0,93610.0,0.09937803]
[1763491762488,0.1078918,93611.0,93610.0,0.09937803]
[1763491762693,0.3688918,93611.0,93610.0,0.09937803]
[1763491766298,0.34322272,93611.0,93610.0,0.09937803]
[1763491767290,0.34322272,93611.0,93610.0,0.09496]
[1763491767686,0.34322272,93611.0,93610.0,0.09715803]
[1763491767884,0.34310272,93611.0,93610.0,0.09715803]
[1763491768391,0.26088,93611.0,93610.0,0.09715803]
[1763491768591,0.16449819,93619.0,93618.0,0.12367]
[1763491768793,0.42533819,93619.0,93618.0,0.48447]
[1763491769395,0.3677227,93619.0,93618.0,0.48447]
[1763491770587,0.107038,93624.0,93623.0,0.09386]
[1763491770789,0.0001602,93624.0,93623.0,0.09386]
[1763491770987,0.2609602,93624.0,93623.0,0.09386]
[1763491772295,0.2619602,93624.0,93623.0,0.09386]
[1763491774089,0.1123602,93624.0,93623.0,0.09386]
[1763491774286,0.08669549,93624.0,93623.0,0.09386]
[1763491775196,0.08669549,93624.0,93623.0,0.2007381]
[1763491775596,0.08669549,93624.0,93623.0,0.09386]
[1763491777900,0.0001602,93633.0,93632.0,0.09386]
[1763491778097,0.0001602,93633.0,93632.0,0.45466]
[1763491778996,0.0021602,93633.0,93632.0,0.45466]
[1763491779499,0.0503702,93633.0,93632.0,0.45466]
[1763491779800,0.0998202,93633.0,93632.0,0.45466]
[1763491780997,0.0021602,93633.0,93632.0,0.45466]
[1763491781999,0.0998202,93633.0,93632.0,0.45466]
[1763491782503,0.0503702,93633.0,93632.0,0.45466]
[1763491783698,0.0998202,93633.0,93632.0,0.45466]
[1763491783900,0.0021602,93633.0,93632.0,0.45466]
[1763491784301,0.0998202,93633.0,93632.0,0.45466]
[1763491784503,0.1090269,93633.0,93632.0,0.45466]
[1763491784692,0.0021602,93633.0,93632.0,0.45466]
[1763491788203,0.1068607,93639.0,93638.0,0.09386]
[1763491788406,0.1068607,93639.0,93638.0,0.45466]
[1763491788911,0.2606,93641.0,93638.0,0.45466]
[1763491788912,0.2606,93641.0,93640.0,0.09605803]
[1763491789507,0.00015947,93650.0,93649.0,0.09386]
[1763491789695,0.00015947,93650.0,93649.0,0.45466]
[1763491789898,0.16449245,93672.0,93671.0,0.09386]
[1763491790095,0.1068224,93672.0,93671.0,0.45466]
[1763491790502,0.1550324,93672.0,93671.0,0.45466]
[1763491790899,0.2044824,93672.0,93671.0,0.45466]
[1763491791306,0.4648024,93672.0,93671.0,0.45466]
[1763491793904,0.4678024,93672.0,93671.0,0.45466]
[1763491794311,0.4183524,93672.0,93671.0,0.45466]
[1763491794715,0.4678024,93672.0,93671.0,0.45466]
[1763491795011,0.4183524,93672.0,93671.0,0.45466]
[1763491795799,0.4678024,93672.0,93671.0,0.45466]
[1763491796214,0.4183524,93672.0,93671.0,0.45466]
[1763491797311,0.47602245,93672.0,93671.0,0.45466]
[1763491798019,0.52547245,93672.0,93671.0,0.45466]
[1763491798207,0.4678024,93672.0,93671.0,0.45466]
[1763491798403,0.4678024,93672.0,93671.0,0.09386]
[1763491800105,0.52520606,93672.0,93671.0,0.09386]
[1763491800307,0.4678024,93672.0,93671.0,0.09386]
[1763491800512,0.3701424,93672.0,93671.0,0.09386]
[1763491800813,0.4160324,93672.0,93671.0,0.09386]
[1763491801006,0.3701424,93672.0,93671.0,0.09386]
[1763491801418,0.4160324,93672.0,93671.0,0.09386]
[1763491802108,0.1983124,93663.0,93662.0,0.0001602]
[1763491802307,0.09148,93646.0,93636.0,0.3886]